bitfinex-derivatives/quotes_SOLF0:USTF0_20241222
["timestamp","ask_amount","ask_price","bid_price","bid_amount"]
[1734901765159,3.14,181.76,181.69,2.7547]
[1734901766355,3.14,181.76,181.7,2.7545]
[1734901766562,3.14,181.76,181.67,21.02156303]
[1734901766860,2.7545,181.71,181.67,23.77656303]
[1734901767062,2.7545,181.71,181.67,21.02156303]
[1734901767361,3.14,181.76,181.67,21.02156303]
[1734901767561,2.7545,181.71,181.68,2.7548]
[1734901768962,2.7545,181.71,181.65,3.14]
[1734901768963,2.7542,181.73,181.66,2.7552]
[1734901769164,3.14,181.76,181.66,2.7552]
[1734901769558,2.7548,181.7,181.66,2.7552]
[1734901770856,2.7548,181.7,181.65,3.14]
[1734901771065,2.7545,181.71,181.67,2.755]
[1734901771268,3.14,181.76,181.65,3.14]
[1734901771859,2.7544,181.72,181.68,2.7549]
[1734901773659,2.7545,181.71,181.68,2.7549]
[1734901775158,2.7544,181.72,181.68,2.7549]
[1734901775352,2.7544,181.72,181.65,3.14]
[1734901775563,3.3174,181.81,181.67,21.02156303]
[1734901775763,3.3174,181.81,181.65,3.14]
[1734901775764,2.7537,181.77,181.73,2.7541]
[1734901776258,3.3174,181.81,181.7,24.16156303]
[1734901776457,6.4574,181.81,181.75,2.7538]
[1734901776863,3.3174,181.81,181.7,24.16156303]
[1734901777166,2.7534,181.79,181.7,24.16156303]
[1734901778669,2.7534,181.79,181.75,2.7537]
[1734901779170,2.7534,181.79,181.7,24.16156303]
[1734901779171,2.7534,181.79,181.76,2.7537]
[1734901779762,3.3174,181.81,181.7,24.16156303]
[1734901779959,2.7532,181.8,181.7,24.16156303]
[1734901780268,2.7532,181.8,181.71,21.02156303]
[1734901780767,2.7532,181.8,181.76,2.7536]
[1734901781065,2.7532,181.8,181.71,21.02156303]
[1734901781263,3.3174,181.81,181.71,21.02156303]
[1734901781264,6.0704,181.81,181.71,21.02156303]
[1734901781463,3.3174,181.81,181.77,2.7535]
[1734901781662,3.3174,181.81,181.71,22.68846303]
[1734901782067,3.3174,181.81,181.76,2.7537]
[1734901782461,3.3174,181.81,181.71,22.68846303]
[1734901782666,2.7537,181.77,181.73,2.7541]
[1734901782963,2.7537,181.77,181.71,22.68846303]
[1734901785369,2.7537,181.77,181.74,2.7539]
[1734901787275,6.4574,181.81,181.72,13.09226573]
[1734901788575,2.754,181.75,181.72,15.84656573]
[1734901793971,2.7537,181.77,181.74,2.7539]
[1734901794172,3.3174,181.81,181.74,2.7539]
[1734901794977,2.7536,181.77,181.74,2.754]
[1734901796373,2.7534,181.79,181.75,2.7538]
[1734901797377,2.7535,181.78,181.75,2.7538]
[1734901797774,24.8135,181.94,181.73,3.08]
[1734901798077,2.7532,181.8,181.77,2.7535]
[1734901798469,94.90243692,181.88,181.78,13.09226573]
[1734901798675,93.77149271,181.95,181.78,16.17226573]
[1734901798676,3.08,181.9,181.78,16.17226573]
[1734901799177,3.08,181.9,181.81,2.7529]
[1734901800976,3.08,181.9,181.78,16.17226573]
[1734901801178,13.09226573,181.89,181.78,16.17226573]
[1734901801377,13.09226573,181.89,181.78,3.08]
[1734901802178,13.09226573,181.89,181.78,5.8334]
[1734901803081,13.09226573,181.89,181.78,16.17226573]
[1734901803576,16.17226573,181.89,181.8,2.753]
[1734901803780,16.17226573,181.89,181.78,16.17226573]
[1734901804171,16.17226573,181.89,181.8,2.7531]
[1734901804172,3.08,181.89,181.8,2.7531]
[1734901807577,3.08,181.89,181.81,15.84516573]
[1734901807779,3.08,181.89,181.81,13.09226573]
[1734901808678,3.3317,181.92,181.81,13.09226573]
[1734901808880,3.08,181.91,181.81,13.09226573]
[1734901809484,16.17226573,181.91,181.74,1.6064]
[1734901809688,13.09226573,181.88,181.75,13.09226573]
[1734901810882,13.09226573,181.88,181.75,15.84616573]
[1734901811188,13.09226573,181.88,181.75,13.09226573]
[1734901812288,13.09226573,181.88,181.75,15.84606573]
[1734901812985,7.21053359,181.91,181.75,15.84606573]
[1734901813191,13.09226573,181.88,181.75,15.84606573]
[1734901813578,16.53369731,181.92,181.79,13.09226573]
[1734901813781,0.888982,181.91,181.82,13.09226573]
[1734901814478,3.3317,181.92,181.82,13.09226573]
[1734901814877,3.3317,181.92,181.85,13.09226573]
[1734901815284,2.7517,181.9,181.88,13.09226573]
[1734901815681,2.22236612,181.95,181.88,13.09226573]
[1734901816190,2.7516,181.9,181.88,20.91142965]
[1734901817386,2.7512,181.93,181.88,20.91142965]
[1734901817590,2.22236612,181.95,181.88,20.91142965]
[1734901818000,2.22236612,181.95,181.91,23.66282965]
[1734901818195,2.22236612,181.95,181.92,3.06]
[1734901818894,2.22236612,181.95,181.92,5.8113]
[1734901819994,2.22236612,181.95,181.91,20.91142965]
[1734901820188,2.22236612,181.95,181.92,3.06]
[1734901820895,2.22236612,181.95,181.91,23.97142965]
[1734901821695,2.22236612,181.95,181.91,20.91142965]
[1734901825286,2.22236612,181.95,181.92,3.06]
[1734901827293,2.22236612,181.95,181.91,23.97142965]
[1734901827498,2.22236612,181.95,181.91,3.06]
[1734901827702,2.22236612,181.95,181.87,3.35272729]
[1734901827891,2.22236612,181.95,181.88,3.06]
[1734901828392,2.22236612,181.95,181.87,6.10482729]
[1734901828588,2.22236612,181.95,181.88,3.06]
[1734901829799,2.22236612,181.95,181.88,5.8119]
[1734901833202,2.22236612,181.95,181.89,2.7518]
[1734901833405,2.22236612,181.95,181.9,3.06]
[1734901836101,2.22236612,181.95,181.9,5.8116]
[1734901839300,2.22236612,181.95,181.91,2.7513]
[1734901840501,2.22236612,181.95,181.9,2.7516]
[1734901840699,2.22236612,181.95,181.9,3.06]
[1734901841006,2.22236612,181.95,181.89,16.12736664]
[1734901841306,2.22236612,181.95,181.89,13.06736664]
[1734901841504,2.22236612,181.95,181.87,3.35272729]
[1734901843006,2.7518,181.9,181.87,3.35272729]
[1734901843203,3.92246612,181.95,181.87,3.35272729]
[1734901843204,2.22236612,181.95,181.87,3.35272729]
[1734901843806,2.7512,181.93,181.89,2.7516]
[1734901844807,2.7512,181.93,181.9,5.8115]
[1734901845910,2.22236612,181.95,181.87,3.35272729]
[1734901846215,2.22236612,181.95,181.87,6.41272729]
[1734901846501,2.22236612,181.95,181.87,3.35272729]
[1734901846700,5.55276612,181.95,181.87,3.35272729]
[1734901847507,2.7519,181.89,181.87,3.35272729]
[1734901848307,2.7519,181.88,181.87,3.35272729]
[1734901849109,5.55276612,181.95,181.87,3.35272729]
[1734901849407,2.7518,181.89,181.87,3.35272729]
[1734901850999,2.7519,181.88,181.87,3.35272729]
[1734901851401,2.22236612,181.95,181.9,13.06736664]
[1734901851598,105.04653323,182.05,181.93,13.06736664]
[1734901851796,2.7503,181.99,181.95,2.7507]
[1734901851997,93.58316659,182.05,181.96,3.06]
[1734901852605,2.03404,182.05,181.96,5.8106]
[1734901852801,2.03404,182.05,181.97,3.06]
[1734901853407,0.43004,182.05,181.97,3.06]
[1734901853608,13.49740664,182.05,181.97,3.06]
[1734901853811,2.7502,182.0,181.97,3.06]
[1734901858409,2.7499,182.02,181.97,5.8104]
[1734901859607,0.43004,182.05,181.97,23.95694636]
[1734901860711,2.7495,182.05,182.0,2.75]
[1734901860911,1.604,182.1,182.0,2.75]
[1734901861114,1.604,182.1,182.01,3.06]
[1734901861407,0.8878208,182.09,181.98,2.7503]
[1734901861602,0.8878208,182.09,181.97,23.95694636]
[1734901862010,2.7496,182.04,181.99,2.7501]
[1734901862213,2.7496,182.04,181.97,23.95694636]
[1734901862609,1.604,182.1,182.01,2.7499]
[1734901863002,2.7492,182.07,182.02,5.8098]
[1734901864206,1.604,182.1,182.02,5.8098]
[1734901864411,2.7492,182.06,182.02,5.8098]
[1734901864915,2.7494,182.05,182.02,3.06]
[1734901866515,2.7487,182.09,182.02,5.8097]
[1734901866716,0.48282,182.12,182.02,5.8097]
[1734901866916,0.88776935,182.11,182.02,5.8097]
[1734901867219,2.7493,182.06,182.02,5.8097]
[1734901867415,0.48282,182.12,182.02,5.8097]
[1734901867613,0.88777697,182.11,182.02,5.8097]
[1734901868421,2.7493,182.05,182.02,5.8097]
[1734901868918,2.7493,182.05,182.02,3.06]
[1734901869420,0.48282,182.12,182.0,20.89694636]
[1734901869615,2.7495,182.04,182.0,26.70694636]
[1734901869816,2.7495,182.04,182.0,23.64694636]
[1734901870119,2.7495,182.04,182.0,26.70694636]
[1734901872115,2.7492,182.06,182.0,23.95694636]
[1734901872623,0.48282,182.12,182.0,23.95694636]
[1734901872922,2.7491,182.07,182.0,23.95694636]
[1734901874021,2.7491,182.07,182.03,20.89694636]
[1734901874318,0.48282,182.12,182.03,13.04917635]
[1734901874521,2.7491,182.07,182.03,15.79867635]
[1734901875020,2.7491,182.07,182.04,2.7495]
[1734901879319,0.48282,182.12,182.06,13.04917635]
[1734901879523,0.48282,182.12,182.11,13.04917635]
[1734901880324,0.48282,182.12,182.11,15.79757635]
[1734901882126,0.48282,182.12,182.08,13.04917635]
[1734901882322,0.48282,182.12,182.05,13.04917635]
[1734901882522,0.48282,182.12,182.04,3.06]
[1734901882718,2.7488,182.09,182.04,3.06]
[1734901882918,0.48282,182.12,182.04,3.06]
[1734901883224,2.7491,182.07,182.02,3.06]
[1734901883418,0.48282,182.12,182.02,3.06]
[1734901883625,2.7498,182.02,181.98,13.04917635]
[1734901884525,2.7497,182.03,181.99,2.7502]
[1734901884821,3.06,182.09,181.98,13.04917635]
[1734901885028,3.06,182.09,182.01,13.04917635]
[1734901885229,2.7488,182.09,182.03,2.7496]
[1734901885529,0.48282,182.12,182.03,2.7496]
[1734901885728,2.749,182.08,182.03,2.7496]
[1734901888730,2.7491,182.07,182.03,2.7496]
[1734901889626,2.7489,182.08,182.04,2.7495]
[1734901890630,2.7489,182.08,182.02,3.06]
[1734901890631,2.7488,182.09,182.05,2.7493]
[1734901891134,17.98567635,182.13,182.05,2.7493]
[1734901891434,2.7489,182.08,182.04,2.7495]
[1734901891730,17.98567635,182.13,182.02,16.10917635]
[1734901892127,17.98567635,182.13,182.03,2.7496]
[1734901892328,17.98567635,182.13,182.02,16.10917635]
[1734901892523,17.98567635,182.13,182.02,13.04917635]
[1734901892726,2.7486,182.1,182.02,15.79887635]
[1734901892930,17.98567635,182.13,182.02,15.79887635]
[1734901893631,2.7492,182.07,182.02,15.79887635]
[1734901893831,17.98567635,182.13,182.02,13.04917635]
[1734901894032,3.94767641,182.12,181.99,16.10917635]
[1734901894227,3.06,182.12,181.99,16.10917635]
[1734901894423,3.06,182.12,181.99,18.85927635]
[1734901894938,2.7496,182.04,182.0,2.75]
[1734901895235,3.06,182.12,181.99,16.10917635]
[1734901895434,0.88771758,182.11,181.99,16.10917635]
[1734901896328,13.04917635,182.1,181.96,13.04917635]
[1734901896531,13.04917635,182.1,181.96,16.10917635]
[1734901896532,0.88771758,182.09,181.96,16.10917635]
[1734901896728,2.7503,181.99,181.96,16.10917635]
[1734901896933,2.7503,181.99,181.96,13.04917635]
[1734901897333,6.4,182.06,181.92,110.62232371]
[1734901897334,1.6434,182.05,181.92,110.62232371]
[1734901897529,1.6434,182.05,181.93,13.04917635]
[1734901897732,1.6434,182.05,181.96,2.7506]
[1734901897926,1.6434,182.05,181.96,13.04917635]
[1734901898130,1.6434,182.05,181.96,16.10917635]
[1734901898932,2.7498,182.03,181.96,16.10917635]
[1734901899133,1.6434,182.05,181.96,16.10917635]
[1734901899432,3.34,182.06,181.96,16.10917635]
[1734901900131,3.34,182.06,181.99,2.7502]
[1734901900432,3.34,182.06,181.96,16.10917635]
[1734901900733,3.34,182.06,182.0,2.7501]
[1734901901235,3.34,182.06,181.96,3.06]
[1734901902434,2.7504,181.99,181.95,15.79997635]
[1734901902635,3.34,182.06,181.92,126.73150006]
[1734901903133,2.7507,181.97,181.93,2.7511]
[1734901904333,2.7509,181.95,181.92,126.42280006]
[1734901904629,3.06,182.02,181.89,13.04917635]
[1734901904630,16.10917635,182.02,181.89,13.04917635]
[1734901904835,2.7514,181.92,181.89,13.04917635]
[1734901905628,2.7516,181.9,181.89,13.04917635]
[1734901906228,2.7516,181.9,181.87,6.10472729]
[1734901906430,3.06,181.89,181.78,87.65976781]
[1734901906651,3.06,181.88,181.78,87.65976781]
[1734901907045,3.06,181.88,181.77,20.91216195]
[1734901907939,2.7525,181.84,181.79,2.7533]
[1734901908144,3.06,181.83,181.75,87.65976781]
[1734901908442,2.7536,181.77,181.75,87.65976781]
[1734901908739,3.06,181.83,181.7,294.12573966]
[1734901908740,3.06,181.78,181.7,1.6234]
[1734901909448,5.8136,181.78,181.72,2.7543]
[1734901909741,2.7539,181.75,181.7,4.3779]
[1734901909943,3.06,181.78,181.7,1.6234]
[1734901910130,3.06,181.78,181.68,1.2813]
[1734901910337,3.06,181.78,181.65,1.7328]
[1734901910633,1.7208,181.77,181.65,1.7328]
[1734901910830,1.7302,181.86,181.66,20.91216195]
[1734901910831,3.06,181.76,181.66,20.91216195]
[1734901911037,20.91216195,181.83,181.66,20.91216195]
[1734901911339,3.06,181.82,181.66,20.91216195]
[1734901913436,1.7407,181.85,181.65,1.7328]
[1734901913739,1.7407,181.85,181.75,20.91216195]
[1734901913740,3.06,181.84,181.75,20.91216195]
[1734901914840,3.06,181.84,181.75,23.66586195]
[1734901915239,2.7534,181.78,181.73,2.7542]
[1734901916341,2.7536,181.77,181.72,23.66646195]
[1734901917037,2.7536,181.77,181.72,2.7543]
[1734901917647,5.8134,181.79,181.72,20.91216195]
[1734901918245,3.06,181.79,181.72,20.91216195]
[1734901918454,2.7534,181.78,181.74,2.754]
[1734901918746,3.06,181.82,181.72,20.91216195]
[1734901918946,3.06,181.82,181.75,20.91216195]
[1734901919343,3.06,181.82,181.76,2.7537]
[1734901919541,3.06,181.82,181.75,20.91216195]
[1734901919744,2.7527,181.83,181.79,2.7533]
[1734901920648,4.8007,181.85,181.79,2.7533]
[1734901920843,2.7525,181.84,181.79,2.7533]
[1734901921239,4.8007,181.85,181.71,3.35542314]
[1734901921449,25.71286195,181.85,181.71,3.35542314]
[1734901921937,25.71286195,181.85,181.73,2.7542]
[1734901921938,2.7536,181.78,181.73,2.7542]
[1734901922142,5.8136,181.78,181.73,2.7542]
[1734901922541,2.7536,181.77,181.73,2.7542]
[1734901922739,3.06,181.8,181.71,3.35542314]
[1734901923850,2.7539,181.76,181.71,6.10992314]
[1734901924350,2.7538,181.76,181.71,6.10992314]
[1734901924549,3.06,181.8,181.71,3.35542314]
[1734901926648,2.7536,181.77,181.73,2.7541]
[1734901927262,2.7538,181.76,181.72,2.7543]
[1734901927551,3.06,181.8,181.71,3.35542314]
[1734901927754,4.6949,181.79,181.71,3.35542314]
[1734901927953,2.7543,181.72,181.71,3.35542314]
[1734901928152,3.06,181.72,181.64,193.81325107]
[1734901928455,2.7547,181.7,181.64,193.81325107]
[1734901928946,3.06,181.72,181.55,2.9958]
[1734901929149,3.06,181.72,181.6,20.91216195]
[1734901929349,3.2791,181.71,181.57,20.91216195]
[1734901929657,2.7555,181.65,181.57,20.91216195]
[1734901930158,3.06,181.66,181.55,20.91216195]
[1734901930355,3.06,181.66,181.5,2.8826]
[1734901930552,3.06,181.66,181.51,2.7574]
[1734901930553,2.7567,181.57,181.51,2.7574]
[1734901930757,3.06,181.58,181.5,1.6011]
[1734901931856,2.7567,181.57,181.5,1.6011]
[1734901932061,3.06,181.59,181.47,20.91216195]
[1734901933459,3.06,181.59,181.45,10.00462606]
[1734901934763,34.13765152,181.6,181.45,10.00462606]
[1734901934954,3.06,181.58,181.45,10.00462606]
[1734901935766,3.06,181.58,181.48,2.758]
[1734901936856,34.13765152,181.54,181.35,270.2119988]
[1734901937158,34.13765152,181.51,181.35,270.2119988]
[1734901938358,34.13765152,181.51,181.37,34.13765152]
[1734901938664,2.7582,181.47,181.4,2.759]
[1734901938969,3.06,181.5,181.37,34.13765152]
[1734901939167,2.758,181.49,181.42,2.7588]
[1734901939368,2.758,181.49,181.37,34.13765152]
[1734901939570,3.06,181.5,181.37,34.13765152]
[1734901939963,2.7578,181.49,181.37,34.13765152]
[1734901940970,2.7578,181.49,181.4,2.7591]
[1734901941168,2.7578,181.49,181.37,34.13765152]
[1734901941370,3.06,181.5,181.37,34.13765152]
[1734901941571,2.758,181.48,181.42,2.7587]
[1734901942770,2.758,181.48,181.43,2.7587]
[1734901943767,2.7578,181.5,181.44,2.7586]
[1734901943968,3.06,181.5,181.4,34.13765152]
[1734901944371,2.758,181.49,181.43,2.7586]
[1734901944672,2.758,181.49,181.4,34.13765152]
[1734901945170,2.758,181.49,181.35,304.34965032]
[1734901945171,1.6711,181.6,181.43,34.13765152]
[1734901945369,34.13765152,181.58,181.44,5.9441]
[1734901945565,34.13765152,181.58,181.44,1.5994]
[1734901945566,1.6784,181.57,181.44,1.5994]
[1734901946467,1.6784,181.57,181.44,4.3579]
[1734901946967,2.7578,181.5,181.44,4.3579]
[1734901947168,3.06,181.52,181.44,4.3579]
[1734901947767,3.06,181.52,181.44,2.7585]
[1734901947972,3.06,181.52,181.42,34.13765152]
[1734901948268,3.06,181.55,181.42,34.13765152]
[1734901948568,2.7574,181.53,181.48,2.7579]
[1734901948772,2.7574,181.53,181.45,34.13765152]
[1734901949172,2.7574,181.53,181.35,145.09017499]
[1734901949173,34.13765152,181.54,181.35,110.95252347]
[1734901949473,2.7584,181.46,181.37,34.13765152]
[1734901950169,2.7584,181.46,181.41,2.7589]
[1734901950370,5.8181,181.47,181.37,34.13765152]
[1734901950568,3.06,181.47,181.4,34.13765152]
[1734901950770,3.06,181.52,181.45,2.7584]
[1734901950969,2.7577,181.5,181.45,2.7584]
[1734901951675,5.8175,181.52,181.43,34.13765152]
[1734901952167,3.06,181.52,181.43,34.13765152]
[1734901952375,5.8174,181.52,181.47,2.758]
[1734901952682,3.06,181.52,181.47,2.758]
[1734901952873,2.7574,181.52,181.48,2.758]
[1734901953085,3.06,181.53,181.48,2.758]
[1734901953371,2.7571,181.54,181.48,2.7579]
[1734901953674,2.7571,181.54,181.46,34.13765152]
[1734901954074,2.7571,181.54,181.49,2.7578]
[1734901954269,3.06,181.55,181.44,2.97]
[1734901954772,2.7578,181.5,181.46,2.7583]
[1734901954972,3.06,181.55,181.42,21.00605672]
[1734901955173,2.7581,181.48,181.44,2.7586]
[1734901955375,2.7581,181.48,181.41,3.06]
[1734901955971,2.7582,181.47,181.43,2.7587]
[1734901956771,3.06,181.5,181.39,21.00605672]
[1734901957675,2.758,181.49,181.44,2.7585]
[1734901959567,5.8177,181.5,181.46,2.7582]
[1734901959776,3.06,181.5,181.42,21.00605672]
[1734901959978,3.06,181.53,181.42,21.00605672]
[1734901960178,2.7573,181.53,181.48,2.7579]
[1734901960569,3.06,181.54,181.48,2.7579]
[1734901960974,2.7574,181.52,181.48,2.7579]
[1734901961179,3.06,181.54,181.45,21.00605672]
[1734901961575,3.06,181.58,181.48,21.00605672]
[1734901962374,3.06,181.61,181.56,2.7568]
[1734901962577,3.06,181.61,181.51,21.00605672]
[1734901963271,2.7562,181.6,181.56,2.7566]
[1734901963472,2.7562,181.6,181.51,21.00605672]
[1734901964175,3.26,181.65,181.51,21.00605672]
[1734901964382,3.06,181.64,181.54,21.00605672]
[1734901964583,1.6895,181.7,181.54,24.06605672]
[1734901964775,2.755,181.68,181.63,2.7556]
[1734901965382,2.7551,181.67,181.63,2.7556]
[1734901965876,2.755,181.68,181.57,21.00605672]
[1734901966083,3.06,181.69,181.57,21.00605672]
[1734901966282,3.06,181.69,181.57,34.08757152]
[1734901966480,2.7554,181.65,181.57,34.08757152]
[1734901968170,2.7553,181.66,181.57,34.08757152]
[1734901968377,3.06,181.69,181.57,34.08757152]
[1734901969384,2.7556,181.64,181.6,2.7561]
[1734901970085,3.06,181.63,181.54,34.08757152]
[1734901970389,3.06,181.62,181.51,34.08757152]
[1734901970584,2.7565,181.58,181.54,2.757]
[1734901974493,2.7569,181.55,181.52,2.7573]
[1734901976287,2.7569,181.55,181.49,1.7097]
[1734901976288,3.3453,181.6,181.5,2.7575]
[1734901976477,2.7571,181.54,181.5,2.7575]
[1734901977686,3.06,181.56,181.51,34.08757152]
[1734901979293,5.8168,181.56,181.52,2.7572]
[1734901979687,2.7571,181.54,181.51,2.7575]
[1734901979983,3.06,181.56,181.49,1.7097]
[1734901980190,3.06,181.56,181.48,34.08757152]
[1734901980591,3.06,181.56,181.47,3.3597919]
[1734901981092,2.7572,181.53,181.49,2.7578]
[1734901981687,3.06,181.56,181.5,2.7577]
[1734901981888,3.06,181.56,181.47,3.3597919]
[1734901982292,2.7565,181.58,181.51,34.08757152]
[1734901982488,4.804,181.62,181.51,34.08757152]
[1734901982690,4.804,181.62,181.51,37.14757152]
[1734901982898,1.5995,181.66,181.54,34.08757152]
[1734901983099,3.06,181.66,181.57,34.08757152]
[1734901983596,0.19527,181.68,181.57,34.08757152]
[1734901983796,0.19527,181.68,181.6,34.08757152]
[1734901984791,0.19527,181.68,181.61,3.06]
[1734901984994,0.19527,181.68,181.63,34.08757152]
[1734901985298,0.19527,181.68,181.67,2.7551]
[1734901988702,2.7545,181.72,181.67,2.7551]
[1734901988898,58.51272041,181.86,181.69,34.08757152]
[1734901989103,1.5929,181.85,181.73,34.08757152]
[1734901989302,1.5929,181.85,181.76,34.08757152]
[1734901989502,1.5929,181.85,181.8,2.753]
[1734901990205,1.5929,181.85,181.78,2.7533]
[1734901991494,2.7525,181.84,181.78,2.7533]
[1734901991698,2.7525,181.84,181.78,2.47978]
[1734901991899,2.753,181.81,181.74,3.04]
[1734901992099,3.04,181.84,181.71,3.35542522]
[1734901992100,37.12757152,181.84,181.71,3.35542522]
[1734901992603,34.08757152,181.78,181.65,34.08757152]
[1734901992906,34.08757152,181.78,181.63,1.7192]
[1734901992907,6.4823,181.77,181.63,1.7192]
[1734901993300,1.738,181.76,181.62,37.12757152]
[1734901993500,2.7548,181.69,181.64,2.7555]
[1734901993802,2.7548,181.69,181.62,34.08757152]
[1734901994305,2.7547,181.7,181.65,2.7553]
[1734901994602,3.04,181.71,181.62,34.08757152]
[1734901995106,2.7547,181.7,181.65,2.7554]
[1734901995399,2.7542,181.74,181.68,2.7549]
[1734901995607,3.04,181.75,181.65,34.08757152]
[1734901996104,3.04,181.75,181.62,34.08757152]
[1734901997507,2.7549,181.69,181.63,2.7556]
[1734901998008,2.7549,181.69,181.64,2.7555]
[1734901998407,3.04,181.75,181.62,34.08757152]
[1734901998606,2.755,181.68,181.62,34.08757152]
[1734901998810,3.04,181.75,181.62,34.08757152]
[1734901999208,37.12757152,181.75,181.59,34.08757152]
[1734901999810,2.7552,181.67,181.61,2.7559]
[1734902000213,3.04,181.69,181.56,34.08757152]
[1734902000407,2.7559,181.63,181.58,2.7565]
[1734902000612,4.8337,181.68,181.55,1.7192]
[1734902001515,4.8337,181.68,181.53,144.93814461]
[1734902001717,34.08757152,181.66,181.53,110.85057309]
[1734902002118,2.7566,181.57,181.53,110.85057309]
[1734902002314,3.04,181.59,181.48,1.6931]
[1734902002512,3.04,181.58,181.47,3.3597919]
[1734902002711,2.7574,181.52,181.47,6.1178919]
[1734902002915,6.3953,181.57,181.47,3.3597919]
[1734902003110,2.7571,181.54,181.49,2.7577]
[1734902003316,6.3953,181.57,181.47,3.3597919]
[1734902003720,4.7646,181.57,181.47,3.3597919]
[1734902003916,3.04,181.57,181.48,34.08757152]
[1734902004122,3.04,181.61,181.49,3.04]
[1734902004316,1.7246,181.62,181.49,3.04]
[1734902004521,4.7646,181.62,181.51,34.08757152]
[1734902004924,2.756,181.61,181.56,2.7568]
[1734902005320,2.756,181.61,181.57,2.7566]
[1734902006122,5.7959,181.62,181.57,2.7566]
[1734902006321,3.04,181.62,181.57,2.7566]
[1734902007529,2.756,181.61,181.57,2.7566]
[1734902007920,3.04,181.62,181.58,2.7565]
[1734902008123,1.69,181.67,181.54,3.04]
[1734902008324,92.64357941,181.72,181.57,34.08757152]
[1734902008525,57.28,181.79,181.66,2.7552]
[1734902008526,3.04,181.71,181.66,2.7552]
[1734902008831,37.12757152,181.75,181.66,2.7552]
[1734902011527,2.7547,181.7,181.66,2.7552]
[1734902012128,2.755,181.68,181.63,5.7957]
[1734902012427,34.08757152,181.72,181.63,5.7957]
[1734902012626,3.04,181.71,181.63,2.7557]
[1734902013224,2.7551,181.68,181.63,2.7557]
[1734902013827,3.04,181.71,181.61,1.6304]
[1734902014027,3.04,181.71,181.59,3.04]
[1734902014328,1.6138,181.7,181.59,3.04]
[1734902014521,1.6138,181.7,181.55,3.04]
[1734902014725,34.08757152,181.69,181.55,3.04]
[1734902015128,2.756,181.62,181.57,2.7566]
[1734902016023,2.7558,181.63,181.57,2.7566]
[1734902016232,3.04,181.65,181.57,2.7566]
[1734902016531,2.756,181.62,181.57,2.7566]
[1734902016730,3.04,181.65,181.55,3.04]
[1734902017443,3.04,181.65,181.6,2.7561]
[1734902017929,5.7955,181.65,181.6,2.7561]
[1734902018120,3.04,181.65,181.6,2.7561]
[1734902019021,3.04,181.65,181.58,2.7565]
[1734902019225,3.04,181.65,181.55,3.04]
[1734902019531,3.04,181.65,181.54,112.53643172]
[1734902019722,2.7565,181.59,181.54,2.7569]
[1734902019929,3.3489,181.64,181.51,3.04]
[1734902020129,1.6965,181.64,181.53,34.08757152]
[1734902020328,2.7557,181.64,181.6,2.7561]
[1734902021227,3.04,181.65,181.6,2.7561]
[1734902021424,2.7557,181.63,181.6,2.7561]
[1734902021732,3.04,181.65,181.58,2.7564]
[1734902022232,3.04,181.65,181.56,3.04]
[1734902022432,3.04,181.65,181.55,2.7569]
[1734902023527,3.04,181.65,181.48,1.7418]
[1734902023528,2.7565,181.58,181.54,2.757]
[1734902023732,3.04,181.65,181.5,37.12757152]
[1734902023934,3.04,181.64,181.5,37.12757152]
[1734902024129,2.7562,181.6,181.53,2.7572]
[1734902024335,3.04,181.59,181.48,1.7418]
[1734902024533,3.04,181.58,181.48,1.7418]
[1734902024736,5.7965,181.58,181.54,2.757]
[1734902025134,3.04,181.58,181.54,2.757]
[1734902025329,3.04,181.58,181.5,34.08757152]
[1734902025531,2.7569,181.55,181.52,2.7574]